[Event "94th Tradewise Hastings Congress"]
[Site "Hastings"]
[Date "2019.01.01"]
[Round "5"]
[White "Wilson, Matthew R"]
[Black "Barton, R Alan"]
[Result "1/2-1/2"]
[ECO "B01"]
[WhiteElo "1807"]
[BlackElo "2037"]
[Annotator "NA RC"]
[PlyCount "82"]
[EventDate "2018.12.28"]
[EventType "swiss"]
[EventCountry "ENG"]
[SourceTitle "playchess.com"]
[Source "ChessBase"]
[SourceQuality "1"]
[TimeControl "40/6000+30:3000+30"]

{[%evp 32,82,41,13,87,32767,32767,32767,32767,32767,89,88,108,75,81,58,95,6,15,5,0,20,0,0,0,0,32767,32767,32767,0,32767,-14,-9,-31,-21,-4,-24,-35,-33,-35,-17,-9,62,0,0,0,0,0,0,0,0,0,0]} 1. e4 {[%emt 0:00:00]} d5 {[%emt 0:00:23]} 2. exd5 {[%emt 0:00:00]} Qxd5 {[%emt 0:00:09]} 3. Nc3 {[%emt 0:00:00]} Qa5 {[%emt 0:00:53]} 4. Bc4 {[%emt 0:00:58]} c6 {[%emt 0:02:39]} 5. d3 {[%emt 0:00:50]} Nf6 {[%emt 0:02:08]} 6. Bd2 {[%emt 0:00:57]} Qc7 {[%emt 0:01:25]} 7. Nf3 {[%emt 0:03:46]} Bg4 {[%emt 0:02:24] B01: Scandinavian Defence} 8. h3 {[%emt 0:00:27]} Bxf3 {[%emt 0:00:29]} 9. Qxf3 {[%emt 0:00:32]} e6 {[%emt 0:00:07]} 10. O-O {[%emt 0:04:34]} Nbd7 {[%emt 0:01:04]} 11. d4 {[%emt 0:12:20]} Bd6 {[%emt 0:03:05]} (11... Be7 12. Rfe1 O-O 13. Rad1 Rad8 14. Bf4 Qb6 15. Bb3 {1-0 (42) Mortensen,E (2450)-Schwarz,M (2485) Germany 2009}) 12. Rfe1 {[%emt 0:05:52]} O-O {[%emt 0:01:03]} 13. Ne4 {[%emt 0:06:57]} Nxe4 {[%emt 0:02:07]} 14. Qxe4 $146 {[%emt 0:01:01]} ({Predecessor:} 14. Rxe4) 14... Nf6 {[%emt 0:01:20]} 15. Qh4 {[%emt 0:06:48]} Rfe8 {[%emt 0:08:54]} 16. Bd3 {[%emt 0:06:50]} Qd8 {[%emt 0:05:06]} 17. Bg5 {[%emt 0:06:10]} Be7 {[%emt 0:01:55]} (17... h6 $11 {remains equal.} 18. Bxf6 Qxf6 19. Qxf6 gxf6) 18. Bxf6 {[%emt 0:07:19]} Bxf6 {[%emt 0:00:05]} 19. Qh5 {[%emt 0:00:23]} Kf8 {[%emt 0:00:06]} 20. Qxh7 {[%emt 0:01:15]} Qa5 {[%emt 0:09:00]} (20... Qxd4 $11 {keeps the balance.} 21. c3 Qd5) 21. c3 {[%emt 0:06:45]} Rac8 {[%emt 0:08:51]} 22. Qe4 Rcd8 {[%emt 0:00:00]} 23. Bc2 {[%emt 0:08:22]} Rd6 {[%emt 0:00:00]} 24. f4 {[%emt 0:04:53]} (24. b4 $16 Qa3 25. Qf3) 24... c5 {[%emt 0:05:06]} 25. dxc5 {[%emt 0:06:38]} Qxc5+ {[%emt 0:00:04]} 26. Kh1 {[%emt 0:00:19]} Red8 {[%emt 0:08:40]} 27. Rad1 {[%emt 0:05:41]} Rxd1 {[%emt 0:06:35]} 28. Rxd1 {[%emt 0:00:28]} Rxd1+ {[%emt 0:00:28]} 29. Bxd1 {[%emt 0:00:01]} Qf2 {[%emt 0:01:01]} 30. Bf3 {[%emt 0:06:16]} g6 {[%emt 0:10:01]} 31. Qxb7 {[%emt 0:04:20]} Kg7 {[%emt 0:07:58]} 32. Qb5 {[%emt 0:01:53]} Qe3 {[%emt 0:04:16]} 33. Qc4 {[%emt 0:00:55]} Qe1+ {[%emt 0:02:05]} 34. Kh2 {[%emt 0:00:09]} Bh4 {[%emt 0:00:54]} 35. Qd4+ {[%emt 0:01:20]} Kh7 {[%emt 0:01:20]} (35... Kg8 $5 36. Qg1 $8 Qg3+ 37. Kh1 Qxf4 $11) 36. Qg1 {[%emt 0:00:18]} Qg3+ {[%emt 0:04:14]} (36... Bg3+ $11 37. Kh1 Qd2) 37. Kh1 {[%emt 0:00:03]} Qxf4 {[%emt 0:00:42]} 38. Qxa7 {[%emt 0:01:38]} Qc1+ {[%emt 0:02:38]} 39. Kh2 {[%emt 0:00:15]} Qf4+ {[%emt 0:00:49]} 40. Kh1 {[%emt 0:00:04]} Qc1+ {[%emt 0:01:19]} 41. Kh2 {[%emt 0:50:48]} Qf4+ $11 {[%emt 0:51:48]} 1/2-1/2

[Event "94th Tradewise Hastings Congress"]
[Site "Hastings"]
[Date "2019.01.02"]
[Round "6"]
[White "Djuric, Stefan"]
[Black "Royset, Pal"]
[Result "1-0"]
[ECO "B50"]
[WhiteElo "2371"]
[BlackElo "2182"]
[Annotator "NA"]
[PlyCount "81"]
[EventDate "2018.12.28"]
[EventType "swiss"]
[EventCountry "ENG"]
[SourceTitle "playchess.com"]
[Source "ChessBase"]
[SourceQuality "1"]
[TimeControl "40/6000+30:3000+30"]

1. e4 {[%emt 0:00:00]} c5 {[%emt 0:00:32]} 2. Nf3 {[%emt 0:00:00]} d6 {[%emt 0:01:07]} 3. g3 {[%emt 0:01:07]} Nf6 {[%emt 0:02:35]} 4. c3 {[%emt 0:01:51]} Nc6 {[%emt 0:01:52]} 5. d3 {[%emt 0:00:02]} g6 {[%emt 0:02:42]} 6. Bg2 {[%emt 0:00:02]} Bg7 {[%emt 0:00:19]} 7. O-O {[%emt 0:00:02]} O-O {[%emt 0:01:03]} 8. Re1 {[%emt 0:00:30]} e5 {[%emt 0:02:18]} 9. a3 {[%emt 0:00:43]} b6 {[%emt 0:04:58]} 10. b4 {[%emt 0:04:25]} Qd7 {[%emt 0:09:45]} 11. Bb2 {[%emt 0:20:34]} Re8 {[%emt 0:06:52]} 12. Nbd2 {[%emt 0:05:27]} Ba6 {[%emt 0:06:00]} 13. d4 {[%emt 0:05:39]} exd4 {[%emt 0:10:24]} 14. cxd4 {[%emt 0:00:03]} Nh5 {[%emt 0:04:05]} 15. Qa4 {[%emt 0:16:17]} Bb7 {[%emt 0:05:23]} 16. Rab1 {[%emt 0:06:05]} cxd4 {[%emt 0:13:57]} 17. Bxd4 {[%emt 0:06:08]} Rad8 {[%emt 0:04:38]} 18. Bxg7 {[%emt 0:04:06]} Kxg7 {[%emt 0:00:28]} 19. b5 {[%emt 0:06:45]} Na5 {[%emt 0:00:46]} 20. Qd4+ {[%emt 0:03:19]} Kg8 {[%emt 0:00:06]} 21. Qa1 {[%emt 0:13:53]} Rc8 {[%emt 0:03:47]} 22. Nd4 {[%emt 0:01:00]} Rc5 {[%emt 0:02:19]} 23. Rbd1 {[%emt 0:02:25]} Qe7 {[%emt 0:02:47]} 24. a4 {[%emt 0:00:45]} Rec8 {[%emt 0:03:11]} 25. N2b3 {[%emt 0:04:18]} Nxb3 {[%emt 0:01:09]} 26. Nxb3 {[%emt 0:01:14]} Rc3 {[%emt 0:00:22]} 27. Nd4 {[%emt 0:00:12]} Qe5 {[%emt 0:02:42]} 28. a5 {[%emt 0:03:18]} bxa5 {[%emt 0:03:41]} 29. Qxa5 {[%emt 0:00:42]} Qc5 {[%emt 0:00:20]} 30. Qa1 {[%emt 0:00:33]} Rc7 {[%emt 0:02:44]} 31. Qb2 {[%emt 0:01:23]} Qb6 {[%emt 0:01:19]} 32. e5 {[%emt 0:01:37]} dxe5 {[%emt 0:02:48]} 33. Rxe5 {[%emt 0:00:29]} Nf6 {[%emt 0:02:42]} 34. Bxb7 {[%emt 0:00:57]} Qxb7 {[%emt 0:00:11]} 35. h3 {[%emt 0:00:25]} Qb6 {[%emt 0:01:13]} 36. Re2 {[%emt 0:00:33]} Qd6 {[%emt 0:01:40]} 37. Kh2 {[%emt 0:00:18]} h5 {[%emt 0:01:05]} 38. Qa1 {[%emt 0:00:41]} h4 {[%emt 0:01:52]} 39. Ne6 {[%emt 0:00:19]} hxg3+ {[%emt 0:00:36]} 40. Kg2 {[%emt 0:00:02]} Nh5 {[%emt 0:01:34]} 41. Rxd6 1-0

[Event "94th Tradewise Hastings Congress"]
[Site "Hastings"]
[Date "2019.01.02"]
[Round "6"]
[White "Derakhshani, Borna"]
[Black "Groffen, Hans"]
[Result "1-0"]
[ECO "D02"]
[WhiteElo "2325"]
[BlackElo "2120"]
[Annotator "NA"]
[PlyCount "55"]
[EventDate "2018.12.28"]
[EventType "swiss"]
[EventCountry "ENG"]
[SourceTitle "playchess.com"]
[Source "ChessBase"]
[SourceQuality "1"]
[TimeControl "40/6000+30:3000+30"]

1. d4 {[%emt 0:13:32]} d5 {[%emt 0:00:00]} 2. Bf4 {[%emt 0:00:07]} Nf6 {[%emt 0:00:05]} 3. Nf3 {[%emt 0:00:14]} c5 {[%emt 0:00:36]} 4. e3 {[%emt 0:00:07]} e6 {[%emt 0:01:06]} 5. c3 {[%emt 0:00:13]} Bd6 {[%emt 0:00:46]} 6. Bg3 {[%emt 0:01:17]} O-O {[%emt 0:00:18]} 7. Nbd2 {[%emt 0:00:25]} b6 {[%emt 0:00:31]} 8. Ne5 {[%emt 0:00:45]} Ba6 {[%emt 0:02:09]} 9. Bxa6 {[%emt 0:00:24]} Nxa6 {[%emt 0:00:08]} 10. Bh4 {[%emt 0:01:13]} Nb8 {[%emt 0:01:08]} 11. f4 {[%emt 0:01:28]} Be7 {[%emt 0:00:50]} 12. Bxf6 {[%emt 0:00:50]} Bxf6 {[%emt 0:00:09]} 13. O-O {[%emt 0:01:38]} Bxe5 {[%emt 0:02:37]} 14. fxe5 {[%emt 0:00:37]} Qg5 {[%emt 0:03:09]} 15. Qe2 {[%emt 0:04:45]} f5 {[%emt 0:02:26]} 16. exf6 {[%emt 0:01:27]} Rxf6 {[%emt 0:00:32]} 17. Nf3 {[%emt 0:03:50]} Qh5 {[%emt 0:08:05]} 18. Qb5 {[%emt 0:00:52]} c4 {[%emt 0:02:59]} 19. Ne5 {[%emt 0:04:09]} h6 {[%emt 0:06:52]} 20. e4 {[%emt 0:03:53]} dxe4 {[%emt 0:02:21]} 21. Qxc4 {[%emt 0:00:16]} Qe8 {[%emt 0:02:36]} 22. Qc7 {[%emt 0:04:18]} Na6 {[%emt 0:06:00]} 23. Qb7 {[%emt 0:00:14]} Qc8 {[%emt 0:00:35]} 24. Qxe4 {[%emt 0:00:07]} Qe8 {[%emt 0:01:48]} 25. Rxf6 {[%emt 0:05:12]} gxf6 {[%emt 0:00:09]} 26. Ng4 {[%emt 0:00:20]} f5 {[%emt 0:02:26]} 27. Nxh6+ {[%emt 0:01:13]} Kh7 {[%emt 0:01:58]} 28. Nxf5 {[%emt 0:01:15]} 1-0

[Event "94th Tradewise Hastings Congress"]
[Site "Hastings"]
[Date "2019.01.02"]
[Round "6"]
[White "Lyell, Mark"]
[Black "Midhun, P U"]
[Result "1-0"]
[ECO "C45"]
[WhiteElo "2317"]
[BlackElo "2010"]
[Annotator "NA"]
[PlyCount "91"]
[EventDate "2018.12.28"]
[EventType "swiss"]
[EventCountry "ENG"]
[SourceTitle "playchess.com"]
[Source "ChessBase"]
[SourceQuality "1"]
[TimeControl "40/6000+30:3000+30"]

1. e4 {[%emt 0:00:00]} e5 {[%emt 0:00:00]} 2. Nf3 {[%emt 0:01:17]} Nc6 {[%emt 0:00:00]} 3. d4 {[%emt 0:01:26]} exd4 {[%emt 0:00:37]} 4. Nxd4 {[%emt 0:00:06]} Nf6 {[%emt 0:00:35]} 5. Nxc6 {[%emt 0:00:20]} bxc6 {[%emt 0:00:07]} 6. e5 {[%emt 0:00:06]} Qe7 {[%emt 0:00:05]} 7. Qe2 {[%emt 0:00:05]} Nd5 {[%emt 0:00:05]} 8. c4 {[%emt 0:00:17]} Ba6 {[%emt 0:00:05]} 9. b3 {[%emt 0:00:50]} g6 {[%emt 0:01:53]} 10. g3 {[%emt 0:00:16]} Bg7 {[%emt 0:01:51]} 11. Bb2 {[%emt 0:00:11]} O-O {[%emt 0:01:44]} 12. Bg2 {[%emt 0:00:07]} Nb6 {[%emt 0:06:58]} 13. O-O {[%emt 0:05:34]} d5 {[%emt 0:01:53]} 14. f4 {[%emt 0:04:53]} Qc5+ {[%emt 0:06:52]} 15. Qf2 {[%emt 0:02:04]} Qxf2+ {[%emt 0:03:03]} 16. Rxf2 {[%emt 0:00:05]} f6 {[%emt 0:19:01]} 17. c5 {[%emt 0:06:53]} Nc8 {[%emt 0:10:12]} 18. exf6 {[%emt 0:08:04]} Bxf6 {[%emt 0:00:05]} 19. Bxf6 {[%emt 0:00:37]} Rxf6 {[%emt 0:00:10]} 20. Nd2 {[%emt 0:08:23]} Re6 {[%emt 0:22:48]} 21. Nf3 {[%emt 0:03:58]} Re3 {[%emt 0:01:35]} 22. Nd4 {[%emt 0:04:46]} Bb7 {[%emt 0:00:59]} 23. f5 {[%emt 0:03:49]} Ne7 {[%emt 0:02:24]} 24. f6 {[%emt 0:01:36]} Nf5 {[%emt 0:00:28]} 25. Nxf5 {[%emt 0:00:50]} gxf5 {[%emt 0:00:02]} 26. Rxf5 {[%emt 0:00:52]} Kf7 {[%emt 0:01:17]} 27. Raf1 {[%emt 0:09:28]} Ba6 {[%emt 0:01:23]} 28. R1f2 {[%emt 0:27:09]} Re1+ {[%emt 0:05:59]} 29. Bf1 {[%emt 0:00:03]} Bd3 {[%emt 0:03:17]} 30. R5f4 {[%emt 0:01:23]} Be4 {[%emt 0:01:52]} 31. h4 {[%emt 0:02:39]} Rg8 {[%emt 0:06:42]} 32. Kh2 {[%emt 0:03:02]} h5 {[%emt 0:01:24]} 33. Bg2 {[%emt 0:01:15]} Re3 {[%emt 0:03:35]} 34. Bxe4 {[%emt 0:02:39]} dxe4 {[%emt 0:00:03]} 35. Rd2 {[%emt 0:03:06]} Rgxg3 {[%emt 0:02:05]} 36. Rd7+ {[%emt 0:00:48]} Ke6 {[%emt 0:00:36]} 37. Re7+ {[%emt 0:04:00]} Kd5 {[%emt 0:00:04]} 38. Rexe4 {[%emt 0:01:01]} Rh3+ {[%emt 0:02:05]} 39. Kg2 {[%emt 0:00:02]} Reg3+ {[%emt 0:00:09]} 40. Kf2 {[%emt 0:00:19]} Rc3 {[%emt 0:02:25]} 41. Rd4+ {[%emt 0:52:49]} Ke6 {[%emt 0:50:18]} 42. f7 {[%emt 0:00:00]} Rc2+ {[%emt 0:00:00]} 43. Kg1 {[%emt 0:00:00]} Rg3+ {[%emt 0:00:00]} 44. Kf1 {[%emt 0:00:00]} Rh3 {[%emt 0:00:00]} 45. Rde4+ {[%emt 0:00:00]} Kd5 {[%emt 0:00:00]} 46. Re2 {[%emt 0:00:00]} 1-0

[Event "94th Tradewise Hastings Congress"]
[Site "Hastings"]
[Date "2019.01.02"]
[Round "6"]
[White "Pitschka, Claus"]
[Black "Rayner, Francis"]
[Result "1/2-1/2"]
[ECO "D01"]
[WhiteElo "2241"]
[BlackElo "2048"]
[Annotator "NA"]
[PlyCount "89"]
[EventDate "2018.12.28"]
[EventType "swiss"]
[EventCountry "ENG"]
[SourceTitle "playchess.com"]
[Source "ChessBase"]
[SourceQuality "1"]
[TimeControl "40/6000+30:3000+30"]

1. d4 {[%emt 0:17:23]} Nf6 {[%emt 0:00:23]} 2. Nc3 {[%emt 0:00:19]} d5 {[%emt 0:03:08]} 3. Bg5 {[%emt 0:00:13]} h6 {[%emt 0:03:03]} 4. Bxf6 {[%emt 0:00:11]} exf6 {[%emt 0:00:06]} 5. e3 {[%emt 0:01:36]} c6 {[%emt 0:01:38]} 6. g3 {[%emt 0:01:59]} Bd6 {[%emt 0:01:58]} 7. Bg2 {[%emt 0:00:35]} O-O {[%emt 0:00:49]} 8. Nge2 {[%emt 0:00:55]} Bf5 {[%emt 0:09:03]} 9. O-O {[%emt 0:00:45]} Re8 {[%emt 0:00:15]} 10. Nf4 {[%emt 0:03:22]} Bxf4 {[%emt 0:01:49]} 11. gxf4 {[%emt 0:00:12]} Nd7 {[%emt 0:00:56]} 12. Kh1 {[%emt 0:02:37]} Nb6 {[%emt 0:01:23]} 13. Ne2 {[%emt 0:04:13]} Nc4 {[%emt 0:03:54]} 14. Ng3 {[%emt 0:00:54]} Qd7 {[%emt 0:01:26]} 15. b3 {[%emt 0:02:02]} Nd6 {[%emt 0:00:09]} 16. Rg1 {[%emt 0:01:27]} Bg6 {[%emt 0:05:08]} 17. Bf3 {[%emt 0:05:36]} Kh7 {[%emt 0:02:49]} 18. Bg4 {[%emt 0:13:25]} f5 {[%emt 0:01:34]} 19. Bf3 {[%emt 0:04:25]} Ne4 {[%emt 0:01:10]} 20. Kg2 {[%emt 0:01:18]} Qe6 {[%emt 0:08:11]} 21. Qd3 {[%emt 0:02:14]} Rad8 {[%emt 0:01:28]} 22. c4 {[%emt 0:02:16]} Kh8 {[%emt 0:07:16]} 23. Rgd1 {[%emt 0:04:00]} Bh7 {[%emt 0:03:34]} 24. Rac1 {[%emt 0:00:31]} Rd7 {[%emt 0:07:46]} 25. cxd5 {[%emt 0:00:34]} Rxd5 {[%emt 0:00:39]} 26. Qc2 {[%emt 0:06:20]} g5 {[%emt 0:04:13]} 27. Bxe4 {[%emt 0:04:17]} fxe4 {[%emt 0:00:09]} 28. fxg5 {[%emt 0:00:13]} hxg5 {[%emt 0:01:14]} 29. Qd2 {[%emt 0:09:54]} Bg6 {[%emt 0:05:35]} 30. Rh1 {[%emt 0:04:51]} Qg4 {[%emt 0:06:19]} 31. h3 {[%emt 0:06:11]} Qh4 {[%emt 0:04:57]} 32. Rhf1 {[%emt 0:05:38]} f5 {[%emt 0:03:34]} 33. f4 {[%emt 0:00:05]} exf3+ {[%emt 0:03:17]} 34. Rxf3 {[%emt 0:02:48]} f4 {[%emt 0:07:19]} 35. exf4 {[%emt 0:01:04]} Be4 {[%emt 0:00:33]} 36. Nxe4 {[%emt 0:00:29]} Rxe4 {[%emt 0:00:02]} 37. Qf2 {[%emt 0:01:44]} Qxf2+ {[%emt 0:02:01]} 38. Rxf2 {[%emt 0:00:21]} gxf4 {[%emt 0:00:38]} 39. Kf3 {[%emt 0:01:30]} Rdxd4 {[%emt 0:01:38]} 40. Kg4 {[%emt 0:00:37]} f3+ {[%emt 0:07:02]} 41. Kg3 {[%emt 0:50:23]} Re2 {[%emt 0:02:00]} 42. Rc2 {[%emt 0:00:00]} Rd3 {[%emt 0:01:55]} 43. Kf4 {[%emt 0:09:31]} Rxc2 {[%emt 0:09:56]} 44. Rxc2 {[%emt 0:00:00]} f2 {[%emt 0:00:33]} 45. Ke4 {[%emt 0:00:56]} 1/2-1/2

[Event "94th Tradewise Hastings Congress"]
[Site "Hastings"]
[Date "2019.01.02"]
[Round "6"]
[White "Moore, Graham J"]
[Black "Sulskis, Sarunas"]
[Result "0-1"]
[ECO "C00"]
[WhiteElo "2235"]
[BlackElo "2525"]
[Annotator "ChessBase"]
[PlyCount "54"]
[EventDate "2018.12.28"]
[EventType "swiss"]
[EventCountry "ENG"]
[SourceTitle "playchess.com"]
[Source "ChessBase"]
[SourceQuality "1"]
[TimeControl "40/6000+30:3000+30"]

1. e4 {[%emt 0:00:00]} e6 {[%emt 0:00:12]} 2. d3 {[%emt 0:00:23]} d5 {[%emt 0:04:05]} 3. Nd2 {[%emt 0:01:08]} Nc6 {[%emt 0:00:22]} 4. Ngf3 {[%emt 0:01:28]} Nf6 {[%emt 0:02:01]} 5. e5 {[%emt 0:03:33]} Nd7 {[%emt 0:00:32]} 6. d4 {[%emt 0:00:32]} f6 {[%emt 0:00:45]} 7. Bb5 {[%emt 0:04:11]} fxe5 {[%emt 0:01:55]} 8. dxe5 {[%emt 0:02:35]} Be7 {[%emt 0:07:27]} 9. Qe2 {[%emt 0:12:48]} O-O {[%emt 0:05:36]} 10. Nb3 {[%emt 0:02:06]} Qe8 {[%emt 0:11:30]} 11. O-O {[%emt 0:09:20]} Nd8 {[%emt 0:09:42]} 12. Ne1 {[%emt 0:17:54]} a6 {[%emt 0:12:03]} 13. Bd3 {[%emt 0:09:16]} c5 {[%emt 0:01:21]} 14. c4 {[%emt 0:00:04]} b5 {[%emt 0:00:49]} 15. cxd5 {[%emt 0:00:05]} exd5 {[%emt 0:00:06]} 16. Bb1 {[%emt 0:02:48]} c4 17. Nd4 {[%emt 0:10:03]} Bc5 {[%emt 0:11:29]} 18. Ndf3 {[%emt 0:01:50]} Ne6 {[%emt 0:00:38]} 19. b3 {[%emt 0:01:08]} Bb7 {[%emt 0:03:51]} 20. bxc4 {[%emt 0:01:26]} bxc4 21. a4 {[%emt 0:05:57]} Rc8 {[%emt 0:01:30]} 22. Ba3 {[%emt 0:02:07]} Ba8 {[%emt 0:05:40]} 23. Bxc5 {[%emt 0:01:38]} Ndxc5 {[%emt 0:04:15]} 24. Nc2 {[%emt 0:02:30]} Nf4 {[%emt 0:02:32]} 25. Qe3 {[%emt 0:00:25]} Nxg2 {[%emt 0:01:16]} 26. Qg5 {[%emt 0:02:10]} Nf4 {[%emt 0:01:28]} 27. Ncd4 {[%emt 0:00:09]} Nh3+ {[%emt 0:00:11]} 0-1

[Event "94th Tradewise Hastings Congress"]
[Site "Hastings"]
[Date "2019.01.02"]
[Round "6"]
[White "Villiers, Thomas"]
[Black "Barton, R Alan"]
[Result "1-0"]
[ECO "A42"]
[WhiteElo "2205"]
[BlackElo "2037"]
[Annotator "NA"]
[PlyCount "73"]
[EventDate "2018.12.28"]
[EventType "swiss"]
[EventCountry "ENG"]
[SourceTitle "playchess.com"]
[Source "ChessBase"]
[SourceQuality "1"]
[TimeControl "40/6000+30:3000+30"]

1. d4 {[%emt 0:00:00]} d6 {[%emt 0:00:34]} 2. e4 {[%emt 0:00:00]} g6 {[%emt 0:01:10]} 3. f4 {[%emt 0:00:47]} c6 {[%emt 0:01:51]} 4. c4 {[%emt 0:00:25]} Bg7 {[%emt 0:01:59]} 5. Nc3 {[%emt 0:00:16]} Na6 {[%emt 0:02:01]} 6. Be3 {[%emt 0:01:07]} Nf6 {[%emt 0:08:25]} 7. Nf3 {[%emt 0:00:04]} Bg4 {[%emt 0:03:09]} 8. h3 {[%emt 0:08:42]} Bd7 {[%emt 0:05:35]} 9. e5 {[%emt 0:00:45]} Nh5 {[%emt 0:03:54]} 10. Kf2 {[%emt 0:00:03]} f5 {[%emt 0:08:05]} 11. Rg1 {[%emt 0:09:06]} dxe5 {[%emt 0:03:13]} 12. dxe5 {[%emt 0:00:06]} Bf8 {[%emt 0:02:03]} 13. Qb3 {[%emt 0:11:51]} Qc7 {[%emt 0:05:22]} 14. Be2 {[%emt 0:03:01]} Ng7 {[%emt 0:01:08]} 15. Rac1 {[%emt 0:04:08]} Ne6 {[%emt 0:03:16]} 16. Rgd1 {[%emt 0:03:34]} Nac5 {[%emt 0:01:42]} 17. Qa3 {[%emt 0:02:32]} b6 {[%emt 0:01:32]} 18. b4 {[%emt 0:00:13]} Ne4+ {[%emt 0:03:55]} 19. Nxe4 {[%emt 0:00:29]} fxe4 {[%emt 0:00:03]} 20. Nd2 {[%emt 0:00:50]} Bh6 {[%emt 0:01:17]} 21. g3 {[%emt 0:01:30]} O-O {[%emt 0:03:09]} 22. Nxe4 {[%emt 0:04:03]} g5 {[%emt 0:01:51]} 23. Bf3 {[%emt 0:10:06]} gxf4 {[%emt 0:00:58]} 24. gxf4 {[%emt 0:04:38]} Nxf4 {[%emt 0:00:40]} 25. Rg1+ {[%emt 0:06:36]} Kh8 {[%emt 0:00:59]} 26. e6 {[%emt 0:01:15]} Nxh3+ {[%emt 0:06:24]} 27. Ke2 {[%emt 0:00:02]} Nxg1+ {[%emt 0:07:11]} 28. Rxg1 {[%emt 0:00:23]} Rxf3 {[%emt 0:03:13]} 29. Qc3+ {[%emt 0:05:14]} Rf6 {[%emt 0:00:35]} 30. Nxf6 {[%emt 0:00:09]} Qh2+ {[%emt 0:01:50]} 31. Bf2 {[%emt 0:00:04]} Qxg1 {[%emt 0:04:28]} 32. Bxg1 {[%emt 0:00:18]} Bxe6 {[%emt 0:01:56]} 33. Nh5+ {[%emt 0:03:26]} Kg8 {[%emt 0:00:11]} 34. Qg3+ {[%emt 0:00:12]} Kf8 {[%emt 0:04:21]} 35. Qf3+ {[%emt 0:00:09]} Bf7 {[%emt 0:00:32]} 36. Qxc6 {[%emt 0:00:38]} Bxh5+ {[%emt 0:01:04]} 37. Kf1 {[%emt 0:00:08]} 1-0

[Event "94th Tradewise Hastings Congress"]
[Site "Hastings"]
[Date "2019.01.02"]
[Round "6"]
[White "Sumit, Kumar"]
[Black "Spanton, Tim R"]
[Result "1-0"]
[ECO "C54"]
[WhiteElo "2179"]
[BlackElo "1954"]
[Annotator "NA"]
[PlyCount "51"]
[EventDate "2018.12.28"]
[EventType "swiss"]
[EventCountry "ENG"]
[SourceTitle "playchess.com"]
[Source "ChessBase"]
[SourceQuality "1"]
[TimeControl "40/6000+30:3000+30"]

1. e4 {[%emt 0:00:08]} e5 {[%emt 0:00:00]} 2. Nf3 {[%emt 0:00:05]} Nc6 {[%emt 0:00:00]} 3. Bc4 {[%emt 0:00:04]} Bc5 {[%emt 0:00:00]} 4. O-O {[%emt 0:00:12]} d6 {[%emt 0:01:47]} 5. c3 {[%emt 0:00:20]} Nf6 {[%emt 0:00:19]} 6. d3 {[%emt 0:00:16]} a6 {[%emt 0:00:16]} 7. Bb3 {[%emt 0:01:04]} Ba7 {[%emt 0:00:16]} 8. Nbd2 {[%emt 0:00:56]} O-O {[%emt 0:00:29]} 9. h3 {[%emt 0:00:09]} Qe7 {[%emt 0:01:12]} 10. Re1 {[%emt 0:00:25]} Be6 {[%emt 0:02:34]} 11. Bc2 {[%emt 0:00:35]} Rad8 {[%emt 0:00:55]} 12. Nf1 {[%emt 0:01:40]} h6 {[%emt 0:00:29]} 13. Ng3 {[%emt 0:01:36]} Rfe8 {[%emt 0:02:49]} 14. Qe2 {[%emt 0:19:56]} d5 {[%emt 0:06:37]} 15. Nh4 {[%emt 0:08:00]} dxe4 {[%emt 0:04:41]} 16. dxe4 {[%emt 0:01:14]} Qd7 {[%emt 0:06:29]} 17. Qf3 {[%emt 0:04:03]} Ne7 {[%emt 0:07:31]} 18. Bxh6 {[%emt 0:08:38]} Bxh3 {[%emt 0:05:38]} 19. Bxg7 {[%emt 0:10:47]} Kxg7 {[%emt 0:00:58]} 20. gxh3 {[%emt 0:01:28]} Rh8 {[%emt 0:00:51]} 21. Nhf5+ {[%emt 0:03:31]} Nxf5 {[%emt 0:00:49]} 22. Nxf5+ {[%emt 0:00:18]} Kf8 {[%emt 0:00:19]} 23. Rad1 {[%emt 0:01:43]} Qe8 {[%emt 0:00:29]} 24. Bb3 {[%emt 0:06:08]} Rxd1 {[%emt 0:02:59]} 25. Rxd1 {[%emt 0:00:07]} Nh5 {[%emt 0:02:39]} 26. Bxf7 {[%emt 0:03:15]} 1-0

[Event "94th Tradewise Hastings Congress"]
[Site "Hastings"]
[Date "2019.01.02"]
[Round "6"]
[White "Byron, Alan M"]
[Black "Larsen, Andreas"]
[Result "1-0"]
[ECO "B01"]
[WhiteElo "2157"]
[BlackElo "1933"]
[Annotator "NA"]
[PlyCount "59"]
[EventDate "2018.12.28"]
[EventType "swiss"]
[EventCountry "ENG"]
[SourceTitle "playchess.com"]
[Source "ChessBase"]
[SourceQuality "1"]
[TimeControl "40/6000+30:3000+30"]

1. e4 {[%emt 0:00:00]} d5 {[%emt 0:01:00]} 2. exd5 {[%emt 0:00:00]} Nf6 {[%emt 0:00:06]} 3. d4 {[%emt 0:00:00]} Nxd5 {[%emt 0:00:08]} 4. Nf3 {[%emt 0:00:18]} Qd6 {[%emt 0:04:19]} 5. c4 {[%emt 0:04:22]} Nf6 {[%emt 0:08:29]} 6. Nc3 {[%emt 0:01:15]} c6 {[%emt 0:07:53]} 7. Be2 {[%emt 0:01:15]} g6 {[%emt 0:00:31]} 8. O-O {[%emt 0:00:17]} Bg7 {[%emt 0:00:15]} 9. Bg5 {[%emt 0:02:29]} O-O {[%emt 0:02:18]} 10. Qd2 {[%emt 0:00:08]} Re8 {[%emt 0:00:18]} 11. Bh6 {[%emt 0:02:48]} b6 {[%emt 0:04:59]} 12. Bf4 {[%emt 0:02:12]} Qd8 {[%emt 0:04:25]} 13. Ne5 {[%emt 0:00:14]} Bf5 {[%emt 0:24:21]} 14. Bf3 {[%emt 0:00:56]} Nh5 {[%emt 0:01:15]} 15. Nxc6 {[%emt 0:14:47]} Nxc6 {[%emt 0:00:55]} 16. Bxc6 {[%emt 0:00:06]} Nxf4 {[%emt 0:01:52]} 17. Qxf4 {[%emt 0:01:29]} Bxd4 {[%emt 0:23:12]} 18. Bxe8 {[%emt 0:06:20]} e5 {[%emt 0:00:06]} 19. Bxf7+ {[%emt 0:01:35]} Kxf7 {[%emt 0:00:06]} 20. Qf3 {[%emt 0:00:41]} Kg7 {[%emt 0:00:56]} 21. Rad1 {[%emt 0:00:41]} Rc8 {[%emt 0:00:20]} 22. b3 {[%emt 0:00:53]} Qe7 {[%emt 0:02:27]} 23. Rfe1 {[%emt 0:04:00]} Qa3 {[%emt 0:00:58]} 24. Nb5 {[%emt 0:01:55]} Qb4 {[%emt 0:01:36]} 25. Qd5 {[%emt 0:10:26]} Bc5 {[%emt 0:05:25]} 26. Qxe5+ {[%emt 0:00:55]} Kh6 {[%emt 0:00:19]} 27. Nd6 {[%emt 0:04:11]} Rf8 {[%emt 0:01:22]} 28. Qf4+ {[%emt 0:01:13]} Kg7 {[%emt 0:00:55]} 29. Re7+ {[%emt 0:01:01]} Kg8 {[%emt 0:01:18]} 30. Qh6 {[%emt 0:02:49]} 1-0